fUSD/lending_fUSD_20240326
["ID","MTS","AMOUNT","RATE_DAILY","PERIOD"]
[320529062,1711417842093,-348.17854702,0.00049999,120]
[320529065,1711417843060,-518.42,0.0004959,30]
[320529066,1711417843069,-184.5832,0.00049999,120]
[320529067,1711417843105,-1886.54815482,0.00049999,120]
[320529068,1711417843114,-3616.63,0.00049999,120]
[320529069,1711417843123,-3616.63,0.00049999,120]
[320529070,1711417843132,-499.99,0.00050684,2]
[320529071,1711417843141,-1025.83181764,0.000509,120]
[320529072,1711417843151,-18357.01287364,0.00051,34]
[320529073,1711417843160,-600.0,0.00051,52]
[320529074,1711417843251,-2012.0,0.00051,120]
[320529075,1711417843261,-2966.38820361,0.00051019,2]
[320529076,1711417843271,-152.98459715,0.00051021,48]
[320529077,1711417843281,-566.00431883,0.00051062,120]
[320529078,1711417843291,-1362.0,0.00051092,120]
[320529079,1711417843300,-1693.95,0.00051095,120]
[320529080,1711417843310,-1314.0,0.00051095,120]
[320529081,1711417843320,-531.0,0.00051096,60]
[320529082,1711417843330,-524.0,0.00051096,60]
[320529083,1711417843340,-167.19194182,0.00051097,2]
[320529084,1711417843349,-9429.89996338,0.000511,120]
[320529085,1711417843359,-351.0,0.00051115,7]
[320529086,1711417843368,-152.98459715,0.00051133,48]
[320529087,1711417843378,-2218.1392,0.00051168,3]
[320529088,1711417843387,-165.91813232,0.00051169,2]
[320529089,1711417843396,-439.97769211,0.00051169,120]
[320529090,1711417843406,-854.77649397,0.00051169,48]
[320529091,1711417843415,-370.7538119,0.00051169,2]
[320529092,1711417843426,-186.15229191,0.00051169,2]
[320529093,1711417843436,-1005.36475591,0.000512,120]
[320529094,1711417843445,-1693.95,0.00051232,120]
[320529095,1711417843455,-152.98459715,0.00051245,49]
[320529096,1711417843464,-10770.32761178,0.00051264,28]
[320529097,1711417843474,-289.85950545,0.00051266,14]
[320529098,1711417843483,-334.38388364,0.00051266,2]
[320529099,1711417843493,-150.0,0.00051268,30]
[320529100,1711417843503,-150.0,0.00051268,30]
[320529101,1711417843512,-150.0,0.00051268,30]
[320529102,1711417843522,-150.0,0.00051268,30]
[320529103,1711417843532,-150.0,0.00051268,30]
[320529104,1711417843541,-150.0,0.00051268,30]
[320529105,1711417843551,-150.0,0.00051268,30]
[320529106,1711417843560,-150.0,0.00051268,30]
[320529107,1711417843570,-2087.67,0.00051268,30]
[320529108,1711417843579,-492.164462,0.00051268,120]
[320529109,1711417843588,-492.164462,0.00051268,120]
[320529110,1711417843597,-151.0,0.00051268,120]
[320529111,1711417843607,-41531.57599336,0.00051269,36]
[320529112,1711417843623,-3200.60197691,0.00051269,36]
[320529113,1711417843648,-6186.6366348,0.00051269,36]
[320529114,1711417843660,-1263221.99999994,0.00051269,36]
[320529122,1711417846140,-251.30128662,0.00049556,2]
[320529123,1711417870386,370.26674286,0.00018,2]
[320529124,1711417870413,401.259717,0.00018,2]
[320529125,1711417870450,92110.68488871,0.00018,2]
[320529126,1711417870480,89531.79476608,0.00018,2]
[320529127,1711417870505,398.09211398,0.00018,2]
[320529128,1711417870533,446.31872092,0.00018,2]
[320529129,1711417870559,436.66180996,0.00018,2]
[320529130,1711417870592,39456.0446753,0.00018,2]
[320529131,1711417870617,398.48851855,0.00018,2]
[320529132,1711417870646,8000.0,0.00018,2]
[320529133,1711417870670,8000.0,0.00018,2]
[320529134,1711417870694,8000.0,0.00018,2]
[320529135,1711417870718,8000.0,0.00018,2]
[320529136,1711417870741,323.83101344,0.00018,2]
[320529137,1711417903806,602.13085478,0.00031388,30]
[320529139,1711417938108,296.07439376,0.00018,2]
[320529142,1711417976069,-5876.72860478,0.000249,10]
[320529143,1711417982273,7380.0945928,0.0001798,2]
[320529144,1711417982293,8000.0,0.0001798,2]
[320529145,1711417982312,8000.0,0.0001798,2]
[320529146,1711417982332,8000.0,0.0001798,2]
[320529147,1711417982352,8000.0,0.0001798,2]
[320529148,1711417982371,8000.0,0.0001798,2]
[320529149,1711417982390,8000.0,0.0001798,2]
[320529150,1711417982410,8000.0,0.0001798,2]
[320529151,1711417982429,8000.0,0.0001798,2]
[320529152,1711417982448,8000.0,0.0001798,2]
[320529153,1711417982469,8000.0,0.0001798,2]
[320529154,1711417982488,8000.0,0.0001798,2]
[320529155,1711417982507,8000.0,0.0001798,2]
[320529156,1711417982526,135.94861836,0.0001798,2]
[320529160,1711418033434,152.42831337,0.00031388,30]
[320529162,1711418073902,493.736948,0.00015,2]
[320529163,1711418076466,154.74754233,0.00031388,120]
[320529164,1711418078964,1515.33455338,0.00031388,120]
[320529165,1711418079742,501.19848525,0.000137,2]
[320529167,1711418106525,39970.35625724,0.000248,10]
[320529177,1711418251471,59970.35625724,0.000248,15]
[320529182,1711418310046,50000.0,0.000248,15]
[320529191,1711418736152,-179.32336699,0.00018406,2]
[320529192,1711418736174,-643.90299712,0.00018503,2]
[320529193,1711418736195,-250.1172744,0.00018504,2]
[320529194,1711418736216,-381.84414461,0.00018505,2]
[320529202,1711418792967,50000.0,0.000248,15]
[320529205,1711418829097,-155.0,0.00018312,2]
[320529206,1711418829119,-211.89957046,0.00018312,2]
[320529207,1711418829149,-2533.48923793,0.00018312,2]
[320529208,1711418829178,-1847.36240713,0.00018312,2]
[320529209,1711418834143,-519.45461599,0.00018312,2]
[320529210,1711418847109,-430.03638279,0.00018212,2]
[320529211,1711418848147,-276.53434546,0.00018212,2]
[320529212,1711418848168,-2166.69131838,0.0001831,2]
[320529213,1711418848189,-3671.5545883,0.00018311,2]
[320529214,1711418854097,-1594.3657953,0.00018211,2]
[320529222,1711418950103,-155.0,0.00018203,2]
[320529223,1711418950124,-424.63356124,0.00018203,2]
[320529224,1711418950147,-1653.50375407,0.00018204,2]
[320529225,1711418950169,-2166.69131838,0.00018204,2]
[320529226,1711418950199,-548.73636979,0.00018205,2]
[320529227,1711418950219,-1239.70359178,0.00018206,2]
[320529228,1711418950239,-150.0,0.00018206,2]
[320529229,1711418950850,-4381.43517433,0.00018207,2]
[320529230,1711418950878,-2137.89633307,0.00018208,2]
[320529231,1711418950898,-1599.0,0.00018209,2]
[320529232,1711418950921,-2195.77052671,0.00018211,2]
[320529233,1711418950940,-938.23441987,0.00018211,2]
[320529234,1711418950959,-155.55554434,0.00018211,2]
[320529235,1711418950979,-156.25359119,0.00018309,2]
[320529236,1711418950998,-301.69416201,0.00018309,2]
[320529237,1711418951018,-4565.4691067,0.00018309,2]
[320529238,1711418951038,-1511.38554652,0.0001831,2]
[320529239,1711418953095,-1652.03,0.00018203,2]
[320529240,1711418956114,-1418.22858421,0.00018203,2]
[320529241,1711418960109,-77.46282998,0.00018203,2]
[320529242,1711418960130,-2462.58266506,0.0001831,2]
[320529243,1711418960151,-22789.14812768,0.00018311,2]
[320529244,1711418961122,-330.14637461,0.000183,2]
[320529245,1711418961144,-6956.44550718,0.00018311,2]
[320529246,1711418961165,-976.02120865,0.00018312,2]
[320529247,1711418961188,-351.56542253,0.00018319,2]
[320529248,1711418961208,-709.35704916,0.00018504,2]
[320529249,1711418961233,-1705.89837219,0.00018505,2]
[320529250,1711418961254,-1467.66424018,0.00018505,2]
[320529251,1711418961279,-1194.22613573,0.00018507,2]
[320529252,1711418961300,-935.19,0.00018507,2]
[320529253,1711418961321,-512.72501176,0.00018511,2]
[320529254,1711418961341,-150.99,0.00018511,2]
[320529255,1711418961361,-2681.72208939,0.00018521,5]
[320529256,1711418961394,-2523.71950103,0.00018521,5]
[320529257,1711418961414,-1167.84429897,0.000186,2]
[320529258,1711418967115,-155.0,0.00018211,2]
[320529259,1711418967134,-3573.75274656,0.00018217,2]
[320529325,1711419032163,-894.33784328,0.00018211,2]
[320529327,1711419032173,-190.66334288,0.00018211,2]
[320529329,1711419032184,-2911.93225344,0.00018217,2]
[320529331,1711419032193,-47.10933724,0.00018217,2]
[320529333,1711419032205,-102.89066276,0.00018217,2]
[320529335,1711419032216,-150.0,0.00018217,2]
[320529337,1711419032228,-150.0,0.00018217,2]
[320529340,1711419032237,-150.0,0.00018217,2]
[320529342,1711419032248,-150.0,0.00018217,2]
[320529344,1711419032257,-150.0,0.00018217,2]
[320529346,1711419032266,-150.0,0.00018217,2]
[320529348,1711419032275,-150.0,0.00018217,2]
[320529349,1711419032285,-150.0,0.00018217,2]
[320529351,1711419032294,-150.0,0.00018217,2]
[320529353,1711419032304,-150.0,0.00018217,2]
[320529355,1711419032313,-150.0,0.00018217,2]
[320529357,1711419032322,-150.0,0.00018217,2]
[320529360,1711419032331,-150.0,0.00018217,2]
[320529363,1711419032340,-150.0,0.00018217,2]
[320529366,1711419032349,-150.0,0.00018217,2]
[320529369,1711419032358,-150.0,0.00018217,2]
[320529372,1711419032367,-150.0,0.00018217,2]
[320529374,1711419032376,-150.0,0.00018217,2]
[320529377,1711419032386,-150.0,0.00018217,2]
[320529380,1711419032395,-150.0,0.00018217,2]
[320529383,1711419032405,-150.0,0.00018217,2]
[320529385,1711419032413,-150.0,0.00018217,2]
[320529387,1711419032422,-150.0,0.00018217,2]
[320529388,1711419032432,-150.0,0.00018217,2]
[320529389,1711419032441,-150.0,0.00018217,2]
[320529390,1711419032451,-150.0,0.00018217,2]
[320529391,1711419032461,-150.0,0.00018217,2]
[320529392,1711419032471,-150.0,0.00018217,2]
[320529393,1711419032485,-150.0,0.00018217,2]
[320529394,1711419032495,-150.0,0.00018217,2]
[320529395,1711419032505,-182.61988106,0.00018217,2]
[320529396,1711419032514,-550.32984391,0.00018309,2]
[320529397,1711419032524,-2156.45131676,0.00018309,2]
[320529398,1711419032533,-404.85263726,0.00018598,2]
[320529399,1711419032542,-165.75473459,0.00018598,2]
[320529400,1711419032551,-405.55927723,0.00018599,2]
[320529401,1711419032561,-928.77208105,0.00018599,2]
[320529402,1711419032571,-828.43206308,0.000186,2]
[320529403,1711419032580,-166.93931648,0.00018625,2]
[320529404,1711419032589,-157.35679548,0.0001869,2]
[320529405,1711419032599,-176.56,0.00019477,2]
[320529406,1711419032608,-9999.99,0.00019477,2]
[320529407,1711419032617,-150.99,0.00019477,2]
[320529408,1711419032626,-1680.79001548,0.0002,2]
[320529409,1711419032647,-1364.11275842,0.0002,2]
[320529410,1711419032657,-210.0,0.00020027,2]
[320529411,1711419032667,-157.02188943,0.00021169,2]
[320529412,1711419032676,-293.0,0.00022029,2]
[320529413,1711419032686,-411.7713652,0.00022463,2]
[320529414,1711419032696,-175.97503119,0.00023216,2]
[320529415,1711419032713,-174.88102443,0.00023216,2]
[320529416,1711419032723,-1248.94,0.00023228,2]
[320529417,1711419032735,-161.72009962,0.0002327,2]
[320529418,1711419032744,-156.13,0.00023647,2]
[320529419,1711419032754,-154.47,0.00023647,2]
[320529420,1711419032763,-4844.13003047,0.00023647,2]
[320529421,1711419032775,-253.92241788,0.00023647,2]
[320529422,1711419032800,-155.0,0.0001821,2]
[320529423,1711419032810,-700.13755165,0.00023647,2]
[320529424,1711419032819,-154.47,0.00023663,2]
[320529425,1711419032829,-154.47,0.00023679,2]
[320529426,1711419032838,-154.47,0.00023694,2]
[320529427,1711419032847,-154.47,0.0002371,2]
[320529428,1711419032856,-154.47,0.00023726,2]
[320529429,1711419032866,-154.47,0.00023742,2]
[320529430,1711419032874,-154.47,0.00023757,2]
[320529431,1711419032883,-154.47,0.00023773,2]
[320529432,1711419032892,-154.47,0.00023789,2]
[320529433,1711419032901,-154.47,0.00023805,2]
[320529434,1711419032910,-154.47,0.0002382,2]
[320529435,1711419032919,-154.47,0.00023836,2]
[320529436,1711419032929,-154.47,0.00023852,2]
[320529437,1711419032938,-154.47,0.00023868,2]
[320529438,1711419032947,-154.47,0.00023883,2]
[320529439,1711419032956,-250.0,0.00024146,2]
[320529440,1711419032966,-500.0,0.00024222,2]
[320529441,1711419032977,-1668.69,0.00024347,2]
[320529442,1711419032986,-10569.19,0.00024368,2]
[320529443,1711419032996,-2751.0,0.00024481,2]
[320529444,1711419033005,-2383.07,0.00024513,2]
[320529445,1711419033015,-230.18614205,0.00024674,2]
[320529446,1711419033024,-202.70308471,0.0002479,2]
[320529447,1711419033034,-486.66841918,0.00024798,2]
[320529448,1711419033043,-751.89432739,0.00024798,2]
[320529449,1711419033053,-661.39399116,0.00024798,2]
[320529450,1711419033062,-456.63352625,0.00024798,2]
[320529451,1711419033071,-165.44882812,0.00024798,2]
[320529452,1711419033081,-258.55276233,0.00024798,2]
[320529453,1711419033092,-155.51620698,0.00024798,2]
[320529454,1711419033101,-413.24831487,0.00024798,2]
[320529455,1711419033111,-1434.48698872,0.00024798,2]
[320529456,1711419033120,-286.44665473,0.00024798,2]
[320529457,1711419033131,-155.40212427,0.00024798,2]
[320529458,1711419033141,-1008.15020306,0.00024799,2]
[320529459,1711419033150,-1971.30747671,0.00024799,2]
[320529460,1711419033160,-383.27987849,0.000248,2]
[320529461,1711419033171,-638.3470025,0.000248,2]
[320529462,1711419033181,-1819.14020629,0.000248,7]
[320529463,1711419033191,-418.26062904,0.000248,2]
[320529464,1711419033201,-155.09023477,0.000248,2]
[320529465,1711419033210,-363.7661971,0.000248,2]
[320529466,1711419033222,-179.18355976,0.000248,2]
[320529467,1711419033234,-381.18272136,0.000248,2]
[320529468,1711419033282,-1059.25547305,0.000248,2]
[320529469,1711419033294,-38531.77275858,0.000248,2]
[320529470,1711419033303,-166.93931644,0.0002483,2]
[320529471,1711419033313,-1122.98625562,0.00024876,2]
[320529472,1711419033322,-155.17615392,0.00024899,2]
[320529473,1711419033331,-208.24440068,0.000249,2]
[320529474,1711419033340,-155.28144079,0.00025,2]
[320529475,1711419033349,-1873.79644,0.00025,2]
[320529476,1711419033358,-499.99,0.00025231,2]
[320529477,1711419033368,-554.51,0.00025282,2]
[320529478,1711419033377,-202.05,0.00025283,2]
[320529479,1711419033386,-172.23933406,0.00025308,2]
[320529480,1711419033395,-250.0,0.00025355,2]
[320529481,1711419033405,-176.14573046,0.00025452,2]
[320529482,1711419033414,-175.25,0.00026031,2]
[320529483,1711419033423,-170.96,0.00026036,2]
[320529484,1711419033433,-735.99,0.00026254,2]
[320529485,1711419033442,-156.13,0.00026603,120]
[320529486,1711419033452,-1668.69,0.00027086,2]
[320529487,1711419033461,-160.00293598,0.00028789,2]
[320529488,1711419033471,-394.88084542,0.00028923,2]
[320529489,1711419033482,-202.70308471,0.0002899,2]
[320529490,1711419033493,-499.99629028,0.00028998,2]
[320529491,1711419033502,-19398.779952,0.00029,2]
[320529492,1711419033512,-202.70308471,0.00029013,2]
[320529493,1711419033521,-6576.41,0.00029023,2]
[320529494,1711419033531,-735.99,0.00029536,2]
[320529495,1711419033541,-156.13,0.00029559,120]
[320529496,1711419033551,-2226.63600666,0.000296,2]
[320529497,1711419033560,-2381.265822,0.000297,6]
[320529498,1711419033570,-168.16650216,0.00029725,2]
[320529499,1711419033579,-1668.69,0.00029826,2]
[320529500,1711419033589,-615.80726328,0.00029897,2]
[320529501,1711419033599,-155.98648219,0.00029897,2]
[320529502,1711419033608,-202.70308471,0.00029989,2]
[320529503,1711419033617,-2632.61490269,0.0002999,2]
[320529504,1711419033626,-2437.08237856,0.0002999,2]
[320529505,1711419033635,-202.70308471,0.0002999,2]
[320529506,1711419033645,-202.70308471,0.0002999,2]
[320529507,1711419033654,-14463.56748026,0.00029999,2]
[320529508,1711419033663,-5665.69414076,0.0003,4]
[320529509,1711419033672,-26063.61989712,0.0003,4]
[320529510,1711419033682,-2501.75,0.00030063,2]
[320529511,1711419033691,-1500.0,0.000302,6]
[320529512,1711419033700,-202.70308471,0.0003069,2]
[320529513,1711419033709,-1500.0,0.000307,6]
[320529514,1711419033718,-166.93931644,0.00031034,2]
[320529515,1711419033729,-1500.0,0.000312,6]
[320529516,1711419033739,-407.94895229,0.00031299,2]
[320529517,1711419033749,-160.00293599,0.00031309,7]
[320529518,1711419033758,-500.0,0.00031388,2]
[320529519,1711419033768,-394.88084536,0.00031587,2]
[320529520,1711419033777,-2226.63600666,0.00032189,2]
[320529521,1711419033787,-156.13,0.00032515,120]
[320529522,1711419033796,-202.70308471,0.00032582,2]
[320529523,1711419033805,-23900.0,0.00032592,2]
[320529524,1711419033815,-735.99,0.00032818,2]
[320529525,1711419033824,-156.56185909,0.00033041,7]
[320529526,1711419033834,-453.15,0.00033948,2]
[320529527,1711419033844,-394.88084536,0.00034251,2]
[320529528,1711419033853,-1248.94,0.00034461,2]
[320529529,1711419033862,-202.70308471,0.00034768,2]
[320529530,1711419033872,-2226.63600666,0.00034778,2]
[320529531,1711419033881,-538.66221587,0.00034799,7]
[320529532,1711419033891,-9031.54050218,0.000348,4]
[320529533,1711419033900,-171.35,0.00035194,2]
[320529534,1711419033909,-554.51,0.00035395,2]
[320529535,1711419033918,-156.13,0.00035471,120]
[320529536,1711419033936,-735.99,0.000361,2]
[320529537,1711419033948,-453.15,0.00036212,2]
[320529538,1711419033958,-157.35679548,0.00036466,7]
[320529539,1711419033967,-394.88084536,0.00036915,2]
[320529540,1711419033979,-166.93931644,0.00037239,2]
[320529541,1711419033988,-2226.63600666,0.00037367,2]
[320529542,1711419033997,-161.72009962,0.00037397,7]
[320529543,1711419034006,-151.23,0.00037452,10]
[320529544,1711419034016,-250.0,0.00037452,2]
[320529545,1711419034025,-157.35679548,0.000375,7]
[320529546,1711419034034,-202.70308471,0.00037568,2]
[320529547,1711419034044,-853.85,0.00037578,2]
[320529548,1711419034054,-300.99,0.00037701,2]
[320529549,1711419034063,-208.92,0.00037811,120]
[320529550,1711419034072,-393.86709246,0.0003798,10]
[320529551,1711419034084,-1004.67057038,0.00037999,30]
[320529552,1711419034095,-11797.15188056,0.00038,120]
[320529553,1711419034104,-264.01,0.00038277,2]
[320529554,1711419034116,-1000.0,0.00038295,2]
[320529555,1711419034126,-156.2,0.00038361,2]
[320529556,1711419034135,-156.2,0.00038457,2]
[320529557,1711419034144,-453.15,0.00038476,2]
[320529558,1711419034154,-156.2,0.00038552,2]
[320529559,1711419034164,-156.2,0.00038648,2]
[320529560,1711419034173,-156.2,0.00038744,2]
[320529561,1711419034183,-2617.4748238,0.0003888,2]
[320529562,1711419034193,-735.99,0.00039381,2]
[320529563,1711419034202,-394.88084536,0.00039579,2]
[320529564,1711419034212,-2226.63600666,0.00039956,2]
[320529565,1711419034221,-453.15,0.0004074,2]
[320529566,1711419034233,-166.63818464,0.00041874,30]
[320529567,1711419034242,-558.84410486,0.00042,4]
[320529568,1711419034251,-394.88084536,0.00042244,2]
[320529569,1711419034260,-161.72009964,0.00042339,30]
[320529570,1711419034269,-157.35679548,0.00042378,30]
[320529571,1711419034279,-208.92,0.00042537,120]
[320529572,1711419034288,-2226.63600666,0.00042544,2]
[320529573,1711419034298,-453.15,0.00043004,2]
[320529574,1711419034308,-264.01,0.00043062,2]
[320529575,1711419034317,-166.93931644,0.00043443,2]
[320529576,1711419034326,-157.35679548,0.00043742,30]
[320529577,1711419034336,-703.03663075,0.000439,60]
[320529578,1711419034345,-185.07445405,0.000445,120]
[320529579,1711419034354,-156.56185909,0.00044878,30]
[320529580,1711419034363,-394.88084536,0.00044908,2]
[320529581,1711419034373,-446.05492334,0.00045,45]
[320529582,1711419034386,-327.94110263,0.00045,4]
[320529583,1711419034396,-400.42646999,0.00045,14]
[320529584,1711419034405,-5000.0,0.00045,30]
[320529585,1711419034415,-2226.63600666,0.00045133,2]
[320529586,1711419034424,-453.15,0.00045268,2]
[320529587,1711419034434,-152.0,0.0004552,3]
[320529588,1711419034443,-1248.94,0.00045694,120]
[320529589,1711419034453,-208.92,0.00047263,120]
[320529590,1711419034463,-453.15,0.00047532,2]
[320529591,1711419034473,-394.88084536,0.00047572,2]
[320529592,1711419034485,-2226.63600666,0.00047722,2]
[320529593,1711419034495,-264.01,0.00047847,2]
[320529594,1711419034505,-220.84744196,0.00047872,30]
[320529595,1711419034514,-237.44200413,0.00048,120]
[320529596,1711419034524,-705.82,0.00048356,120]
[320529597,1711419034534,-705.82,0.00048493,120]
[320529598,1711419034545,-705.82,0.0004863,120]
[320529599,1711419034555,-705.82,0.00048767,120]
[320529600,1711419034565,-853.85,0.0004881,120]
[320529601,1711419034574,-740.33,0.00048831,2]
[320529602,1711419034584,-4792.628,0.00048835,2]
[320529603,1711419034594,-5700.368,0.00048835,2]
[320529604,1711419034604,-42951.0,0.00048835,2]
[320529605,1711419034614,-2457.462,0.00048835,2]
[320529606,1711419034624,-1046.0,0.00048835,2]
[320529607,1711419034634,-740.33,0.00048856,2]
[320529608,1711419034644,-740.33,0.00048882,2]
[320529609,1711419034654,-705.82,0.00048904,120]
[320529610,1711419034664,-740.33,0.00048908,2]
[320529611,1711419034674,-152.0,0.00048909,4]
[320529612,1711419034684,-740.33,0.00048933,2]
[320529613,1711419034693,-740.33,0.00048959,2]
[320529614,1711419034703,-740.33,0.00048985,2]
[320529615,1711419034712,-2000.0,0.00049,90]
[320529616,1711419034722,-600.0,0.00049,54]
[320529617,1711419034733,-740.33,0.0004901,2]
[320529618,1711419034742,-740.33,0.00049036,2]
[320529619,1711419034752,-705.82,0.00049041,120]
[320529620,1711419034761,-740.33,0.00049062,2]
[320529621,1711419034770,-194.98420874,0.00049065,14]
[320529622,1711419034779,-740.33,0.00049088,2]
[320529623,1711419034788,-740.33,0.00049113,2]
[320529624,1711419034797,-740.33,0.00049139,2]
[320529625,1711419034807,-740.33,0.00049165,2]
[320529626,1711419034816,-705.82,0.00049178,120]
[320529627,1711419034829,-740.33,0.0004919,2]
[320529628,1711419034839,-740.33,0.00049216,2]
[320529629,1711419034848,-740.33,0.00049242,2]
[320529630,1711419034858,-740.33,0.00049267,2]
[320529631,1711419034867,-740.33,0.00049293,2]
[320529632,1711419034877,-161.032611,0.00049298,70]
[320529633,1711419034887,-705.82,0.00049315,120]
[320529634,1711419034896,-200.57130656,0.00049315,30]
[320529635,1711419034906,-740.33,0.00049319,2]
[320529636,1711419034916,-161.032611,0.00049348,72]
[320529637,1711419034925,-151.032611,0.00049358,69]
[320529638,1711419034937,-161.032611,0.00049398,71]
[320529639,1711419034946,-1180.91697189,0.000494,120]
[320529663,1711419037974,-437.7755085,0.000494,120]
[320529665,1711419038094,-436.09288359,0.000494,120]
[320529666,1711419038106,-1210.21463602,0.000494,120]
[320529667,1711419038115,-151.032611,0.00049448,73]
[320529668,1711419038125,-705.82,0.00049452,120]
[320529669,1711419038134,-151.032611,0.00049458,70]
[320529670,1711419038144,-157.032611,0.00049498,72]
[320529671,1711419038153,-151.032609,0.00049548,74]
[320529672,1711419038165,-2000.0,0.00049554,30]
[320529673,1711419038175,-151.032611,0.00049558,71]
[320529674,1711419038185,-194.98420871,0.00049575,14]
[320529675,1711419038195,-705.82,0.00049589,120]
[320529676,1711419038205,-151.032609,0.00049598,73]
[320529677,1711419038214,-161.032609,0.00049598,60]
[320529678,1711419038223,-161.032609,0.00049598,61]
[320529679,1711419038236,-500.0,0.00049599,120]
[320529680,1711419038245,-500.0,0.00049599,120]
[320529681,1711419038255,-500.0,0.00049599,120]
[320529682,1711419038264,-500.0,0.00049599,120]
[320529683,1711419038273,-500.0,0.00049599,120]
[320529684,1711419038282,-500.0,0.00049599,120]
[320529685,1711419038292,-500.0,0.00049599,120]
[320529686,1711419038301,-500.0,0.00049599,120]
[320529687,1711419038310,-500.0,0.00049599,120]
[320529688,1711419038320,-500.0,0.00049599,120]
[320529689,1711419038329,-500.0,0.00049599,120]
[320529690,1711419038340,-500.0,0.00049599,120]
[320529691,1711419038350,-500.0,0.00049599,120]
[320529692,1711419038360,-500.0,0.00049599,120]
[320529693,1711419038370,-500.0,0.00049599,120]
[320529695,1711419038380,-500.0,0.00049599,120]
[320529696,1711419038390,-493.40363754,0.00049599,120]
[320529697,1711419038400,-2056.5681,0.00049601,2]
[320529698,1711419038411,-500.0,0.00049601,2]
[320529699,1711419038421,-2210.6318,0.00049601,2]
[320529700,1711419038431,-282.38141046,0.00049603,14]
[320529701,1711419038441,-342.84590212,0.00049605,2]
[320529702,1711419038452,-174.76632184,0.00049619,2]
[320529703,1711419038462,-1008.5565,0.00049621,120]
[320529704,1711419038472,-152.95894877,0.00049621,43]
[320529705,1711419038484,-151.032609,0.00049648,75]
[320529706,1711419038493,-166.93931644,0.00049648,2]
[320529707,1711419038504,-8255.34695196,0.00049648,26]
[320529708,1711419038513,-172.04733588,0.00049648,37]
[320529709,1711419038523,-183.45049945,0.00049648,26]
[320529710,1711419038533,-161.032611,0.00049658,72]
[320529711,1711419038542,-220.12061199,0.00049692,2]
[320529712,1711419038552,-202.19433343,0.00049692,2]
[320529713,1711419038561,-2135.03028648,0.00049692,2]
[320529714,1711419038571,-683.82119516,0.00049696,46]
[320529715,1711419038580,-232.33197357,0.00049696,2]
[320529716,1711419038590,-161.032609,0.00049698,62]
[320529717,1711419038600,-161.032609,0.00049698,61]
[320529718,1711419038609,-151.032609,0.00049698,74]
[320529719,1711419038619,-157.032609,0.00049698,78]
[320529720,1711419038628,-2000.0,0.00049699,120]
[320529721,1711419038638,-364.00615664,0.000497,60]
[320529722,1711419038647,-71074.83761147,0.00049701,120]
[320529723,1711419038657,-424.26639354,0.00049703,120]
[320529724,1711419038667,-1761.16671951,0.00049704,120]
[320529725,1711419038676,-1761.16671951,0.00049704,120]
[320529726,1711419038685,-1616.63,0.00049705,120]
[320529727,1711419038695,-134544.91497469,0.00049706,120]
[320529728,1711419038705,-158.10049381,0.00049706,120]
[320529729,1711419038714,-71074.83761147,0.00049706,120]
[320529730,1711419038724,-179.06449786,0.00049706,120]
[320529731,1711419038736,-191.68444817,0.00049707,120]
[320529732,1711419038746,-540.41744533,0.00049707,120]
[320529733,1711419038755,-159.13886542,0.00049708,2]
[320529734,1711419038765,-196.14420761,0.00049709,120]
[320529735,1711419038775,-158.10049381,0.00049709,120]
[320529736,1711419038784,-1434.81424719,0.0004971,90]
[320529737,1711419038793,-35415.76287414,0.0004971,120]
[320529738,1711419038803,-23822.43883321,0.0004971,120]
[320529739,1711419038812,-134544.91497469,0.00049711,120]
[320529740,1711419038821,-273.7232505,0.00049711,120]